bitfinex/quotes_ETHUSD_20251011
["timestamp","ask_amount","ask_price","bid_price","bid_amount"]
[1760153144155,0.006,3798.9,3796.5,0.6336]
[1760153144355,0.006,3798.9,3796.7,0.6336]
[1760153144508,0.006,3798.9,3796.4,0.10576484]
[1760153144509,0.442,3798.8,3796.5,0.6336]
[1760153145454,0.006,3798.9,3796.5,0.6336]
[1760153145668,0.006,3798.9,3797.6,0.6336]
[1760153145815,0.006,3798.9,3797.8,0.6336]
[1760153146015,0.006,3798.9,3797.9,0.02633034]
[1760153146210,0.006,3798.9,3798.6,0.6336]
[1760153146757,0.006,3798.9,3798.1,0.6336]
[1760153147110,0.006,3798.9,3795.5,0.002]
[1760153147315,0.006,3798.9,3796.3,2.63410001]
[1760153147531,0.006,3798.9,3795.9,2.6344019]
[1760153147532,0.006,3798.9,3796.1,1.92]
[1760153148243,0.006,3798.9,3796.8,2.63373113]
[1760153148446,0.006,3798.9,3796.5,2.63399166]
[1760153148447,0.006,3798.9,3797.3,0.6336]
[1760153148628,0.006,3798.9,3797.3,3.26702689]
[1760153148813,0.006,3798.9,3798.3,0.8982]
[1760153149017,0.006,3798.9,3798.3,0.6336]
[1760153149216,0.006,3798.9,3797.5,0.6336]
[1760153149458,0.006,3798.9,3794.8,2.63517863]
[1760153149640,0.006,3798.9,3796.6,0.2646]
[1760153149841,0.006,3798.9,3797.4,0.2646]
[1760153150053,0.006,3798.9,3796.4,0.10576484]
[1760153150648,0.006,3798.9,3797.1,0.2646]
[1760153150849,0.006,3798.9,3796.4,2.73977794]
[1760153150850,0.006,3798.9,3796.5,0.6336]
[1760153151937,0.4688,3798.8,3796.5,0.6336]
[1760153152137,0.4688,3798.8,3795.8,2.63443922]
[1760153152362,0.4688,3798.8,3796.2,0.6336]
[1760153152528,0.4688,3798.8,3796.2,1.42692024]
[1760153152732,0.4688,3798.8,3796.5,0.2646]
[1760153153134,0.4688,3798.8,3795.8,0.79332024]
[1760153153365,0.4688,3798.7,3795.6,0.002]
[1760153153937,1.92,3798.3,3795.6,0.002]
[1760153154478,1.92,3797.6,3795.6,0.002]
[1760153154977,0.7013,3797.5,3795.6,0.002]
[1760153155182,0.7013,3797.5,3795.8,0.6336]
[1760153155483,0.7013,3797.5,3795.6,0.002]
[1760153155484,0.4688,3797.4,3795.6,0.002]
[1760153155635,2.3888,3797.4,3795.6,0.002]
[1760153155835,0.4688,3797.4,3795.6,0.002]
[1760153156073,0.2325,3797.5,3795.6,0.002]
[1760153156275,0.2325,3797.5,3795.9,0.6336]
[1760153156477,0.2325,3797.5,3795.6,0.002]
[1760153156687,0.2325,3797.5,3795.9,0.6336]
[1760153156990,0.2325,3797.5,3796.0,0.011335]
[1760153157462,0.1378225,3797.4,3796.0,0.011335]
[1760153157837,0.4688,3797.3,3796.0,0.011335]
[1760153158038,0.4688,3797.3,3795.9,0.6336]
[1760153158238,0.4688,3797.3,3796.0,0.00895778]
[1760153158839,0.1378225,3797.4,3796.0,0.00895778]
[1760153159255,0.1378225,3797.4,3796.0,0.02634351]
[1760153159659,0.1378225,3797.4,3795.7,0.6336]
[1760153159871,0.1378225,3797.4,3795.6,0.002]
[1760153159872,0.6066225,3797.4,3795.9,0.6336]
[1760153161189,0.6066225,3797.4,3796.0,0.02208211]
[1760153161372,0.6066225,3797.4,3795.6,0.02408211]
[1760153161670,0.6066225,3797.4,3795.6,0.002]
[1760153161671,1.92,3796.7,3795.6,0.002]
[1760153162074,0.4688,3796.6,3795.6,0.002]
[1760153164967,0.2325,3795.7,3795.6,0.002]
[1760153165366,0.7013,3795.7,3795.6,0.002]
[1760153165898,0.4688,3796.5,3795.6,0.002]
[1760153166573,0.2325,3795.7,3795.6,0.002]
[1760153167067,0.7013,3795.7,3795.6,0.002]
[1760153168098,1.92,3796.7,3795.6,0.002]
[1760153168269,0.4688,3796.2,3795.6,0.002]
[1760153169012,0.2325,3795.7,3795.6,0.002]
[1760153169599,0.7013,3795.7,3795.6,0.002]
[1760153171625,0.6336,3795.6,3795.3,0.002]
[1760153171792,0.6336,3795.2,3793.1,0.007]
[1760153172114,1.92,3794.4,3793.1,0.007]
[1760153172314,2.63492701,3795.2,3793.1,0.007]
[1760153172315,1.92,3793.6,3793.1,0.007]
[1760153172686,0.4688,3793.5,3793.1,0.007]
[1760153174215,1.92,3793.4,3793.1,0.007]
[1760153174421,0.4688,3793.5,3793.1,0.007]
[1760153174621,0.4688,3793.3,3793.1,0.007]
[1760153175022,1.92,3793.6,3793.1,0.007]
[1760153175190,0.4584,3794.0,3793.1,0.007]
[1760153176111,0.4584,3794.4,3793.1,0.007]
[1760153176313,0.4584,3794.0,3793.1,0.007]
[1760153176699,2.3784,3794.0,3790.1,0.007]
[1760153176890,1.92,3793.7,3790.1,0.007]
[1760153177215,2.63596656,3793.7,3791.3,0.6336]
[1760153177415,1.92,3793.3,3791.3,0.6336]
[1760153177834,0.4584,3793.2,3790.1,0.007]
[1760153178320,0.4584,3793.2,3791.1,0.6386]
[1760153179024,0.4584,3793.1,3791.1,0.6386]
[1760153179244,0.4584,3794.1,3792.4,0.6336]
[1760153179924,0.4584,3794.1,3791.1,2.64269831]
[1760153179925,1.92,3793.7,3791.1,0.005]
[1760153180161,1.92,3793.7,3791.6,0.6336]
[1760153180315,1.92,3793.0,3791.6,0.6336]
[1760153180646,0.4584,3793.6,3791.6,0.6336]
[1760153180864,14.55391109,3794.7,3792.1,0.6386]
[1760153181010,14.55391109,3794.7,3792.7,0.01510551]
[1760153181011,0.4584,3794.4,3792.7,0.01510551]
[1760153182012,0.4584,3794.4,3792.7,0.002]
[1760153183053,0.2325,3795.7,3793.4,0.6336]
[1760153183054,0.4584,3795.2,3793.4,0.6336]
[1760153183212,0.4584,3795.2,3793.5,0.02636087]
[1760153183411,14.16670082,3795.6,3793.5,0.02636087]
[1760153183632,14.62510082,3795.6,3792.9,0.02636505]
[1760153183846,1.92,3795.5,3792.8,0.6336]
[1760153184023,0.4584,3795.6,3793.9,0.6336]
[1760153184425,0.4584,3795.6,3793.3,0.6336]
[1760153184632,0.4584,3796.4,3794.6,0.6336]
[1760153184831,0.4584,3796.4,3794.1,0.6336]
[1760153185354,0.4584,3796.4,3793.9,0.6336]
[1760153185551,0.4584,3796.4,3794.5,0.6336]
[1760153185954,14.16670082,3796.6,3792.6,0.002]
[1760153186119,0.4584,3796.0,3793.2,0.6336]
[1760153186314,14.16670082,3796.6,3792.6,0.002]
[1760153186624,0.3584092,3796.2,3794.1,2.63566857]
[1760153186830,0.4584,3796.4,3794.2,0.6336]
[1760153187030,1.92,3797.1,3792.6,0.002]
[1760153187267,0.4584,3796.3,3794.3,0.6336]
[1760153187420,0.4584,3797.0,3794.8,0.8982]
[1760153187849,0.4584,3797.0,3794.7,0.6336]
[1760153188132,0.4584,3796.8,3794.7,0.6336]
[1760153188339,0.4584,3797.2,3795.0,0.2646]
[1760153188554,0.1378225,3797.4,3794.8,2.63517598]
[1760153188759,0.1378225,3797.4,3794.9,0.65579522]
[1760153188967,0.1378225,3797.4,3795.4,0.6336]
[1760153188968,0.006,3795.9,3795.4,0.6336]
[1760153189168,0.006,3795.9,3795.5,0.02219171]
[1760153189338,0.006,3795.9,3795.1,0.6336]
[1760153189668,0.006,3795.9,3795.0,3.26863245]
[1760153189853,0.006,3795.9,3793.4,14.16670082]
[1760153190054,0.006,3795.9,3794.5,0.6336]
[1760153190257,0.006,3795.9,3794.7,0.6336]
[1760153190456,0.006,3795.9,3795.0,2.63504026]
[1760153190662,0.006,3795.9,3795.1,0.65570401]
[1760153191056,0.006,3795.9,3795.1,0.02210401]
[1760153191288,0.006,3795.9,3794.9,0.6336]
[1760153191467,0.006,3795.9,3795.0,0.02278405]
[1760153191766,0.006,3795.9,3794.9,0.6336]
[1760153191974,0.006,3795.9,3795.0,0.65637504]
[1760153192334,0.006,3795.9,3795.0,0.02277504]
[1760153192577,0.006,3795.9,3794.1,0.6336]
[1760153192578,0.006,3795.9,3794.2,0.02311045]
[1760153192866,0.006,3795.9,3794.8,0.6336]
[1760153193171,0.006,3795.9,3794.4,0.6336]
[1760153193539,0.006,3795.9,3794.7,0.6336]
[1760153193940,0.006,3795.9,3794.4,0.6336]
[1760153194141,0.006,3795.9,3794.6,0.6336]
[1760153194979,0.006,3795.9,3794.7,0.6336]
[1760153195655,0.006,3795.9,3794.4,0.6336]
[1760153195859,0.006,3795.9,3794.7,0.6336]
[1760153196298,0.006,3795.9,3793.8,3.26941623]
[1760153196463,0.006,3795.9,3795.8,3.26809075]
[1760153196665,0.006,3795.9,3795.8,0.6336]
[1760153197294,0.006,3795.9,3795.8,3.26809075]
[1760153197789,0.006,3795.9,3792.5,2.63671471]
[1760153197988,0.006,3795.9,3793.8,2.63587098]
[1760153198195,0.006,3795.9,3794.5,0.6336]
[1760153198394,0.006,3795.9,3794.6,0.02635323]
[1760153198754,0.006,3795.9,3795.5,0.6336]
[1760153198959,0.006,3795.9,3795.6,0.2646]
[1760153199354,0.006,3795.9,3795.7,0.6336]
[1760153199676,0.006,3795.9,3795.8,0.8982]
[1760153201784,0.006,3795.9,3795.8,0.2646]
[1760153202894,0.006,3795.9,3795.8,0.8982]
[1760153205515,0.006,3795.9,3795.3,0.2646]
[1760153206077,0.006,3795.9,3795.7,0.2646]
[1760153206298,0.006,3795.9,3792.9,14.16670082]
[1760153206299,0.006,3795.9,3795.8,0.2646]
[1760153206676,0.006,3795.9,3795.1,0.2646]
[1760153206876,0.006,3795.9,3795.0,0.6336]
[1760153206877,0.006,3795.9,3795.3,0.2646]
[1760153207600,0.6663,3795.8,3793.6,0.2646]
[1760153208205,0.6663,3795.8,3793.7,0.6336]
[1760153208516,0.6663,3795.8,3793.8,0.2646]
[1760153208713,0.6663,3795.8,3794.0,0.2646]
[1760153208899,0.006,3795.9,3794.4,0.2646]
[1760153209104,0.006,3795.9,3795.0,0.2646]
[1760153209277,0.006,3795.9,3793.1,3.26996603]
[1760153209479,0.006,3795.9,3794.3,0.6336]
[1760153209781,0.2291,3795.8,3794.3,0.6336]
[1760153209985,0.2291,3795.8,3793.6,0.6336]
[1760153210200,0.2291,3795.8,3793.8,0.6336]
[1760153210404,0.2291,3795.8,3793.7,0.2646]
[1760153210405,0.4475,3795.7,3793.0,0.002]
[1760153210611,0.4475,3795.7,3793.1,2.63630399]
[1760153210817,0.4475,3795.6,3793.0,0.002]
[1760153211397,0.4475,3795.6,3793.1,0.2646]
[1760153212027,2.6347069,3795.5,3793.1,0.2646]
[1760153212191,0.4475,3795.4,3793.1,0.2646]
[1760153212396,0.71641846,3795.4,3793.0,0.002]
[1760153212800,1.92,3795.0,3793.0,0.002]
[1760153213125,0.26891846,3794.9,3793.0,0.002]
[1760153213423,0.71641846,3794.9,3793.0,0.2666]
[1760153213625,0.71641846,3794.9,3793.1,0.6336]
[1760153213925,0.4475,3794.8,3793.1,0.6336]
[1760153214098,0.4475,3794.7,3793.1,0.6336]
[1760153214295,13.9983094,3794.4,3793.1,0.1586]
[1760153214598,3.38890063,3794.3,3793.0,0.002]
[1760153214793,1.92,3793.9,3793.0,0.002]
[1760153215028,0.29657429,3793.8,3793.0,0.002]
[1760153215236,0.74407429,3793.8,3793.0,0.002]
[1760153215910,2.63602715,3793.6,3793.0,0.002]
[1760153216111,1.92,3793.4,3793.0,0.002]
[1760153216450,1.92,3793.1,3793.0,0.002]
[1760153216744,2.21657429,3793.1,3793.0,0.002]
[1760153217099,2.66407429,3793.1,3793.0,0.002]
[1760153217500,5.30044032,3793.1,3793.0,0.002]
[1760153217908,2.66407429,3793.1,3793.0,0.002]
[1760153218316,5.30044032,3793.1,3793.0,0.002]
[1760153218901,2.66407429,3793.1,3793.0,0.002]
[1760153219099,2.3675,3793.1,3793.0,0.002]
[1760153221100,0.29657429,3794.2,3793.0,0.002]
[1760153221380,2.63562248,3794.2,3793.0,0.002]
[1760153221537,0.4475,3793.1,3793.0,0.002]
[1760153222213,0.29657429,3794.0,3793.0,0.002]
[1760153222214,0.4475,3793.6,3793.0,0.002]
[1760153222541,0.4475,3794.1,3793.0,0.002]
[1760153222703,0.4475,3794.7,3793.0,0.002]
[1760153222902,13.9983094,3796.0,3793.0,0.002]
[1760153222903,0.4475,3794.3,3793.0,0.002]
[1760153223131,0.4475,3794.7,3793.1,0.6336]
[1760153225219,1.83101402,3794.6,3793.1,0.6336]
[1760153225418,0.2301,3795.8,3793.0,0.002]
[1760153225419,2.63546278,3794.4,3793.0,0.002]
[1760153225751,1.92,3794.3,3793.0,0.002]
[1760153225915,0.4475,3794.3,3793.0,0.002]
[1760153226116,0.4475,3794.3,3793.0,0.6356]
[1760153226349,1.78299986,3794.2,3793.0,0.6356]
[1760153226541,1.8008219,3794.1,3793.0,0.6356]
[1760153226735,0.36641714,3794.9,3793.0,0.6356]
[1760153226736,1.82721551,3794.0,3793.0,0.6356]
[1760153227055,1.3895134,3793.8,3793.0,0.002]
[1760153227253,1.32066288,3793.7,3793.0,0.002]
[1760153227455,2.63601939,3793.6,3793.0,0.002]
[1760153227621,1.92,3793.6,3793.0,0.002]
[1760153227816,0.4475,3793.5,3793.0,0.002]
[1760153228221,2.63636603,3793.1,3793.0,0.002]
[1760153228421,4.85294032,3793.1,3793.0,0.002]
[1760153228669,5.30044032,3793.1,3793.0,0.002]
[1760153229823,5.00386603,3793.1,3793.0,0.002]
[1760153230020,2.3675,3793.1,3793.0,0.002]
[1760153232057,1.92,3793.1,3793.0,0.002]
[1760153232364,0.4475,3794.1,3793.0,0.002]
[1760153232736,0.4475,3794.0,3793.0,0.002]
[1760153233357,1.32528363,3793.9,3793.0,0.002]
[1760153233537,4.02541364,3793.8,3793.0,0.002]
[1760153233732,0.4475,3793.8,3793.0,0.002]
[1760153233944,1.37251073,3795.5,3793.0,0.002]
[1760153234268,0.4475,3794.7,3793.2,0.6336]
[1760153235129,0.2301,3795.8,3793.2,0.6336]
[1760153235324,0.8000092,3795.7,3793.0,0.002]
[1760153235555,2.63532971,3794.6,3793.0,0.002]
[1760153235760,13.9983094,3795.4,3793.0,0.002]
[1760153235965,1.31259106,3794.4,3793.0,0.002]
[1760153236127,1.92,3793.7,3793.0,0.002]
[1760153236327,3.95665455,3793.7,3793.0,0.002]
[1760153236564,0.4416,3793.6,3793.0,0.002]
[1760153236760,2.3616,3793.6,3793.0,0.002]
[1760153236941,3.07763429,3793.6,3793.0,0.002]
[1760153237258,0.4416,3793.6,3793.0,0.002]
[1760153237864,0.4416,3794.0,3793.0,0.002]
[1760153238469,1.32528363,3793.9,3793.0,0.002]
[1760153238756,1.92,3793.4,3793.0,0.002]
[1760153238957,1.92,3793.6,3793.0,0.002]
[1760153239260,0.4416,3793.3,3793.0,0.002]
[1760153239663,0.4416,3793.2,3793.0,0.002]
[1760153240043,0.4416,3793.1,3793.0,0.002]
[1760153240461,0.4416,3793.7,3793.0,0.002]
[1760153240776,0.4416,3793.4,3793.0,0.002]
[1760153240978,0.4416,3793.9,3793.0,0.002]
[1760153241179,0.4416,3794.3,3793.0,0.002]
[1760153241383,0.4416,3793.8,3793.0,0.002]
[1760153243952,0.4416,3794.3,3793.1,0.6336]
[1760153244281,2.3616,3794.3,3793.0,0.002]
[1760153244485,0.4416,3794.3,3793.0,0.002]
[1760153244996,0.001,3794.7,3793.6,0.6336]
[1760153245763,0.001,3794.7,3793.0,0.6356]
[1760153245975,0.001,3794.7,3793.1,0.6336]
[1760153246172,0.4416,3794.6,3793.0,0.002]
[1760153246486,1.31259106,3794.4,3793.0,0.002]
[1760153246700,1.92,3793.7,3793.0,0.002]
[1760153247055,0.4416,3793.6,3793.0,0.002]
[1760153247255,1.92,3793.1,3793.0,0.002]
[1760153247765,2.3616,3793.1,3793.0,0.002]
[1760153248492,1.92,3793.1,3793.0,0.002]
[1760153249872,2.3616,3793.1,3793.0,0.002]
[1760153251061,4.99796603,3793.1,3793.0,0.002]
[1760153251265,1.92,3793.1,3793.0,0.002]
[1760153252176,2.3616,3793.1,3793.0,0.002]
[1760153252678,4.99796603,3793.1,3793.0,0.002]
[1760153253010,2.3616,3793.1,3793.0,0.002]
[1760153253763,4.99796603,3793.1,3793.0,0.002]
[1760153254367,2.3616,3793.1,3793.0,0.002]
[1760153254572,4.99796603,3793.1,3793.0,0.002]
[1760153254784,2.3616,3793.1,3793.0,0.002]
[1760153255405,1.92,3793.1,3793.0,0.002]
[1760153255790,0.4416,3794.0,3793.0,0.002]
[1760153256080,1.33549986,3794.2,3793.0,0.002]
[1760153256286,0.4416,3793.9,3793.0,0.002]
[1760153256716,1.32066288,3793.7,3793.0,0.002]
[1760153257015,2.63610776,3793.5,3793.0,0.002]
[1760153257211,1.92,3793.4,3793.0,0.002]
[1760153257399,0.4416,3793.4,3793.0,0.002]
[1760153257709,0.4416,3793.8,3793.0,0.002]
[1760153259102,1.92,3794.4,3793.0,0.002]
[1760153259308,0.001,3793.1,3793.0,0.6356]
[1760153259622,0.001,3793.1,3793.0,0.002]
[1760153259912,0.001,3793.1,3793.0,1.0637]
[1760153260120,0.001,3793.1,3793.0,1.16957906]
[1760153260492,0.001,3793.1,3793.0,1.0637]
[1760153262224,0.001,3793.5,3793.1,3.26994004]
[1760153262392,0.001,3793.5,3793.1,1.0617]
[1760153262597,0.001,3793.5,3793.0,0.002]
[1760153262598,0.001,3793.5,3793.3,0.6336]
[1760153262810,0.001,3793.5,3793.4,1.0617]
[1760153263015,0.001,3793.5,3793.4,1.08375205]
[1760153263340,0.001,3793.5,3793.4,1.0617]
[1760153263524,0.001,3793.5,3793.4,1.3263]
[1760153263728,0.001,3793.5,3793.4,1.0617]
[1760153264202,0.001,3793.5,3793.4,3.69785753]
[1760153264401,0.001,3793.5,3793.4,1.0617]
[1760153264622,0.001,3795.1,3793.9,2.6357745]
[1760153264802,0.001,3795.1,3794.7,0.6336]
[1760153265221,0.001,3795.1,3794.9,0.6336]
[1760153265547,0.001,3795.1,3795.0,0.6336]
[1760153265749,0.001,3795.1,3795.0,1.0757]
[1760153266219,0.001,3795.1,3795.0,0.6336]
[1760153266844,0.001,3795.1,3795.0,1.0757]
[1760153269208,0.001,3795.1,3795.0,0.6336]
[1760153269404,0.001,3795.1,3795.0,1.0757]
[1760153270050,0.001,3795.1,3795.0,3.71074611]
[1760153270544,0.001,3795.1,3795.0,3.81655319]
[1760153270841,0.001,3795.1,3795.0,4.08115319]
[1760153271008,0.001,3795.1,3795.0,1.18150708]
[1760153271354,0.001,3795.1,3795.0,1.20785754]
[1760153271638,0.001,3795.1,3795.0,3.84290365]
[1760153271809,0.001,3795.1,3795.0,1.18150708]
[1760153272009,0.001,3795.1,3795.0,1.44610708]
[1760153272210,0.001,3795.1,3795.0,1.18150708]
[1760153272810,0.001,3795.1,3795.0,1.44610708]
[1760153273011,0.001,3795.1,3795.0,4.08115319]
[1760153273337,0.001,3795.1,3795.0,1.44610708]
[1760153273538,0.001,3795.1,3795.0,3.81655319]
[1760153273955,0.001,3795.1,3795.0,4.08115319]
[1760153274439,0.001,3795.1,3795.0,3.84290365]
[1760153275048,0.001,3795.1,3795.0,4.10750365]
[1760153275215,0.001,3795.1,3795.0,4.08115319]
[1760153276449,0.001,3795.1,3795.0,18.58115319]
[1760153276850,0.001,3795.1,3795.0,3.81655319]
[1760153277023,0.001,3795.1,3795.0,3.44755319]
[1760153277345,0.001,3795.1,3795.0,4.10747414]
[1760153277926,0.001,3795.1,3795.0,1.47242803]
[1760153278126,0.001,3795.1,3795.0,1.44610708]
[1760153278358,0.001,3795.1,3795.0,4.08115319]
[1760153278528,0.001,3795.1,3795.0,4.0872223]
[1760153278734,0.001,3795.5,3795.4,3.2683684]
[1760153278936,0.001,3795.5,3795.4,3.5329684]
[1760153279131,0.001,3795.5,3795.4,1.3474]
[1760153279336,0.001,3795.5,3795.4,3.9904845]
[1760153279830,0.001,3795.5,3795.4,3.9821684]
[1760153280143,0.001,3795.5,3795.4,1.3474]
[1760153281158,0.001,3795.5,3795.1,0.2646]
[1760153281325,0.001,3795.5,3795.2,0.02541629]
[1760153281533,0.001,3795.5,3795.3,0.2646]
[1760153281860,0.001,3795.5,3795.4,0.2646]
[1760153282060,0.001,3795.5,3795.4,0.81961268]
[1760153282438,0.001,3795.5,3795.4,1.45321268]
[1760153289661,0.001,3795.5,3795.4,0.7138]
[1760153289862,0.001,3795.5,3795.3,0.2646]
[1760153290071,0.001,3795.5,3795.4,0.00549777]
[1760153290371,0.001,3795.5,3795.4,0.2646]
[1760153291099,0.001,3795.5,3795.4,0.7138]
[1760153291388,0.001,3795.5,3795.4,0.6336]
[1760153291588,0.001,3795.5,3795.4,0.8982]
[1760153291878,0.001,3795.5,3795.4,1.3474]
[1760153294774,0.001,3795.5,3795.4,0.8982]
[1760153295158,0.001,3795.5,3795.4,1.3474]
[1760153296285,0.001,3795.5,3795.4,3.9821684]
[1760153296576,0.001,3795.5,3795.4,1.547544]
[1760153296971,0.001,3795.5,3795.4,4.1823124]
[1760153297880,0.001,3795.8,3795.7,3.53276016]
[1760153298290,0.001,3795.8,3795.7,3.98196016]
[1760153299485,0.001,3795.8,3795.7,4.00400826]
[1760153299683,0.001,3795.8,3795.7,3.98196016]
[1760153300905,0.001,3795.8,3795.7,3.99888695]
[1760153301762,0.001,3795.8,3795.7,0.7138]
[1760153302291,0.001,3795.8,3795.7,1.3474]
[1760153303302,0.001,3795.8,3795.7,1.3737456]
[1760153303998,0.001,3795.8,3795.7,1.3474]
[1760153305391,0.001,3795.8,3795.7,3.98196016]
[1760153306978,0.001,3795.8,3795.7,1.3474]
[1760153308385,0.001,3795.8,3795.7,0.7401456]
[1760153308700,0.001,3795.8,3795.7,0.7138]
[1760153309418,0.001,3795.8,3795.7,1.3474]
[1760153310780,0.001,3795.8,3795.7,0.7138]
[1760153311203,0.001,3795.8,3795.7,1.3474]
[1760153311405,0.001,3795.8,3795.7,0.7138]
[1760153311613,0.001,3795.8,3795.7,1.3474]
[1760153311841,0.001,3795.8,3795.7,0.2646]
[1760153313229,0.001,3795.8,3795.6,0.2646]
[1760153313909,0.001,3795.8,3795.5,0.002]
[1760153315077,0.4621,3795.7,3795.5,0.002]
[1760153315288,0.001,3795.8,3795.5,0.002]
[1760153315496,0.4621,3795.7,3795.5,0.002]
[1760153316443,0.4621,3795.6,3795.5,0.002]
[1760153316720,0.77093429,3795.6,3795.5,0.002]
[1760153317890,5.68397306,3795.6,3795.5,0.002]
[1760153318128,3.05668476,3795.6,3795.5,0.002]
[1760153318425,2.69093429,3795.6,3795.5,0.002]
[1760153319897,1.92,3795.6,3795.5,0.002]
[1760153320329,0.4621,3795.6,3795.5,0.002]
[1760153321128,0.001,3795.8,3795.5,0.002]
[1760153321490,0.4621,3795.7,3795.5,0.002]
[1760153321822,0.4621,3795.6,3795.5,0.002]
[1760153322126,0.001,3795.8,3795.5,0.002]
[1760153322324,0.4621,3795.7,3795.5,0.002]
[1760153322516,0.4621,3795.6,3795.5,0.002]
[1760153323023,0.77093429,3795.6,3795.5,0.002]
[1760153324122,2.69093429,3795.6,3795.5,0.002]
[1760153324323,0.4621,3795.6,3795.5,0.002]
[1760153324510,0.82785047,3795.6,3795.5,0.002]
[1760153325228,3.46248004,3795.6,3795.5,0.002]
[1760153325422,5.38248004,3795.6,3795.5,0.002]
[1760153326122,2.74785047,3795.6,3795.5,0.002]
[1760153326495,5.38248004,3795.6,3795.5,0.002]
[1760153326695,2.3821,3795.6,3795.5,0.002]
[1760153327117,2.181966,3795.6,3795.5,0.002]
[1760153327316,1.92,3795.6,3795.5,0.002]
[1760153328504,0.001,3795.8,3795.5,0.002]
[1760153329008,0.4445,3795.7,3795.5,0.002]
[1760153329208,0.4445,3795.6,3795.5,0.002]
[1760153330127,0.4516,3795.6,3795.5,0.002]
[1760153331316,0.001,3795.8,3795.5,0.002]
[1760153331521,0.4497,3795.8,3795.5,0.002]
[1760153331700,0.4487,3795.7,3795.5,0.002]
[1760153332332,0.4487,3795.6,3795.5,0.002]
[1760153333536,0.001,3795.8,3795.5,0.002]
[1760153333902,0.4487,3795.7,3795.5,0.002]
[1760153334206,0.001,3795.8,3795.6,0.2644]
[1760153335210,0.001,3795.8,3795.5,0.002]
[1760153335407,0.001,3795.8,3795.6,0.2644]
[1760153336029,0.001,3795.8,3795.5,0.002]
[1760153338110,0.4656,3795.8,3795.5,0.002]
[1760153338444,0.001,3795.8,3795.5,0.4389]
[1760153338632,0.001,3795.8,3795.6,0.4369]
[1760153339340,0.001,3795.8,3795.7,0.2644]
[1760153339536,0.001,3795.8,3795.5,0.002]
[1760153339843,0.001,3795.8,3795.7,0.2644]
[1760153340342,0.001,3795.8,3795.7,0.7013]
[1760153340937,0.001,3795.8,3795.7,0.898]
[1760153341138,0.001,3795.8,3795.7,1.3349]
[1760153341566,0.001,3796.2,3795.8,0.898]
[1760153341744,0.001,3796.6,3796.2,0.898]
[1760153341913,0.13767516,3797.3,3796.2,0.898]
[1760153342108,0.4646,3799.1,3796.4,0.898]
[1760153342414,0.13767582,3797.8,3796.4,0.898]
[1760153342610,0.13767582,3797.8,3796.6,0.898]
[1760153342813,0.35254007,3797.6,3796.6,0.898]
[1760153343117,0.13767582,3797.8,3796.6,0.898]
[1760153343426,0.4622,3797.6,3796.6,0.6336]
[1760153343826,0.4622,3797.6,3796.4,0.6336]
[1760153344421,0.4622,3797.3,3795.8,0.1381]
[1760153344942,0.13767582,3797.8,3795.9,1.0705]
[1760153345144,0.4622,3797.4,3795.9,1.0705]
[1760153345348,0.13767582,3797.8,3795.9,0.6336]
[1760153345349,0.4622,3797.0,3795.9,0.6336]
[1760153345552,0.001,3796.2,3795.5,0.002]
[1760153345750,0.001,3796.2,3795.7,0.4369]
[1760153345950,0.001,3796.2,3795.8,0.4369]
[1760153346133,0.001,3796.2,3795.9,1.07581439]
[1760153346331,0.001,3796.2,3796.0,0.4369]
[1760153346530,0.001,3796.2,3795.6,0.6336]
[1760153346854,0.001,3796.2,3795.8,0.6336]
[1760153347051,0.001,3796.2,3795.9,0.00718873]
[1760153347253,0.001,3796.2,3796.0,0.6336]
[1760153347459,0.001,3796.2,3796.1,0.00718835]
[1760153347655,0.001,3796.2,3796.1,1.07768835]
[1760153347954,0.001,3796.6,3796.2,0.6336]
[1760153348253,0.001,3796.6,3796.3,0.00718797]
[1760153348466,0.001,3796.6,3796.3,0.4369]
[1760153348628,0.001,3796.6,3795.8,0.4369]
[1760153348830,0.001,3796.6,3795.9,0.6336]
[1760153349030,0.001,3796.6,3796.0,0.02634351]
[1760153349355,0.001,3796.6,3796.1,0.6336]
[1760153349851,0.001,3796.6,3796.2,0.02634213]
[1760153350039,0.001,3796.6,3795.8,0.6336]
[1760153350658,0.001,3796.6,3795.7,0.4369]
[1760153351664,0.001,3796.6,3795.5,0.002]
[1760153351868,0.001,3796.6,3795.6,0.4369]
[1760153352446,0.001,3796.6,3795.7,0.6599456]
[1760153352642,0.001,3796.6,3795.7,0.6336]
[1760153353347,0.001,3796.6,3795.6,0.4369]
[1760153354574,0.001,3796.6,3795.5,0.002]
[1760153355057,0.001,3796.6,3795.6,0.4369]
[1760153355358,0.001,3796.6,3795.7,0.65994559]
[1760153355874,0.001,3796.6,3795.9,0.6336]
[1760153356026,0.001,3796.6,3796.0,0.0263435]
[1760153356225,0.001,3796.6,3796.0,0.4641435]